bitfinex/quotes_BTCUSD_20240815
["timestamp","ask_amount","ask_price","bid_price","bid_amount"]
[1723690815825,0.20544927,58493.0,58492.0,0.04758673]
[1723690816028,0.08577727,58493.0,58492.0,0.04758673]
[1723690816240,0.05106119,58496.0,58492.0,0.21914127]
[1723690816414,0.119666,58496.0,58493.0,0.17155454]
[1723690816616,0.119669,58495.0,58492.0,0.04758673]
[1723690816851,0.239333,58496.0,58493.0,0.04910217]
[1723690816852,0.11967,58494.0,58493.0,0.04910217]
[1723690817197,0.119674,58492.0,58491.0,0.0844]
[1723690817413,0.119674,58492.0,58491.0,0.0804]
[1723690817825,0.17073302,58492.0,58491.0,0.0804]
[1723690818041,0.41008102,58492.0,58491.0,0.0804]
[1723690818270,0.07659178,58494.0,58487.0,0.10598545]
[1723690818271,0.119681,58489.0,58487.0,0.10598545]
[1723690818481,0.239353,58491.0,58487.0,0.10598545]
[1723690818482,0.2903978,58491.0,58488.0,0.20040179]
[1723690818677,0.119679,58490.0,58488.0,0.20040179]
[1723690819315,0.0510448,58491.0,58488.0,0.02884725]
[1723690819316,0.11968,58489.0,58488.0,0.02884725]
[1723690821507,0.11968,58489.0,58488.0,0.03384725]
[1723690821733,0.11968,58489.0,58488.0,0.03684725]
[1723690822172,0.11968,58489.0,58488.0,0.03384725]
[1723690822583,0.37616661,58492.0,58488.0,0.03684725]
[1723690822584,0.119678,58491.0,58488.0,0.03684725]
[1723690822780,0.37616661,58492.0,58489.0,0.09947473]
[1723690822997,0.119676,58491.0,58489.0,0.09947473]
[1723690823403,0.05104034,58492.0,58489.0,0.27102927]
[1723690823603,0.05104034,58494.0,58490.0,0.70911154]
[1723690823752,0.05104034,58494.0,58492.0,0.119673]
[1723690823953,0.05104034,58494.0,58493.0,0.28575743]
[1723690824545,0.05104034,58496.0,58494.0,0.0814]
[1723690824752,0.05104034,58496.0,58495.0,0.17155454]
[1723690825561,0.119664,58497.0,58495.0,0.17155454]
[1723690825562,0.17070434,58497.0,58495.0,0.17155454]
[1723690825956,0.358998,58496.0,58495.0,0.17155454]
[1723690826172,0.119666,58496.0,58495.0,0.17155454]
[1723690826390,0.19622651,58496.0,58495.0,0.20881729]
[1723690826589,0.119674,58492.0,58491.0,0.0786]
[1723690826784,0.17073334,58492.0,58491.0,0.0786]
[1723690826986,0.359022,58492.0,58491.0,0.0786]
[1723690827208,0.07658799,58493.0,58492.0,0.198774]
[1723690827209,0.05105604,58493.0,58492.0,0.198774]
[1723690827528,0.10511732,58496.0,58495.0,0.0791]
[1723690827529,0.07949366,58496.0,58495.0,0.0791]
[1723690827738,0.07949366,58496.0,58495.0,0.14624725]
[1723690827943,0.08449366,58496.0,58495.0,0.14624725]
[1723690828181,0.119666,58496.0,58495.0,0.14624725]
[1723690828382,0.358998,58496.0,58495.0,0.06714725]
[1723690828587,0.358998,58496.0,58492.0,0.25065454]
[1723690828588,0.001,58493.0,58492.0,0.25065454]
[1723690828801,0.001,58493.0,58492.0,0.37032854]
[1723690829002,0.10214455,58494.0,58492.0,0.25065454]
[1723690829209,0.10214455,58494.0,58493.0,0.17155454]
[1723690829623,0.23989815,58494.0,58493.0,0.17155454]
[1723690829825,0.23989815,58494.0,58493.0,0.21657497]
[1723690830031,0.36757884,58494.0,58493.0,0.21657497]
[1723690830668,0.36764202,58494.0,58493.0,0.33624697]
[1723690830891,0.36764202,58494.0,58493.0,0.29567497]
[1723690831322,0.2418392,58494.0,58493.0,0.29567497]
[1723690831533,0.37258307,58494.0,58493.0,0.29567497]
[1723690831956,0.37158307,58494.0,58493.0,0.29567497]
[1723690832138,0.49125307,58494.0,58493.0,0.29567497]
[1723690832344,0.49125307,58494.0,58489.0,0.0618]
[1723690832345,0.8431892,58494.0,58489.0,0.0618]
[1723690832552,0.4867346,58490.0,58489.0,0.1409]
[1723690832751,0.7275738,58490.0,58489.0,0.1409]
[1723690832877,0.70203425,58490.0,58489.0,0.1409]
[1723690833076,0.7275738,58490.0,58489.0,0.1669588]
[1723690833564,0.7275738,58490.0,58489.0,0.1051588]
[1723690833722,0.7275738,58490.0,58489.0,0.0791]
[1723690834082,0.5998742,58490.0,58489.0,0.0791]
[1723690834916,0.70203763,58490.0,58489.0,0.0791]
[1723690835374,0.7275738,58490.0,58489.0,0.0791]
[1723690835859,0.7275738,58490.0,58489.0,0.0831]
[1723690836080,1.2062878,58490.0,58489.0,0.0831]
[1723690836296,1.2062878,58490.0,58489.0,0.004]
[1723690836297,1.0785882,58490.0,58489.0,0.004]
[1723690836845,1.46367103,58490.0,58489.0,0.004]
[1723690837049,1.20845042,58490.0,58489.0,0.006]
[1723690837395,1.52087103,58490.0,58489.0,0.006]
[1723690837791,1.52087103,58490.0,58489.0,0.004]
[1723690838396,0.598462,58483.0,58482.0,0.0009053]
[1723690838604,0.8393012,58483.0,58482.0,0.0009053]
[1723690838984,0.5999162,58483.0,58482.0,0.0009053]
[1723690839186,0.70205885,58483.0,58482.0,0.0009053]
[1723690839438,0.94144385,58483.0,58482.0,0.0009053]
[1723690839800,0.94244385,58483.0,58482.0,0.0009053]
[1723690840023,1.0796862,58483.0,58482.0,0.0009053]
[1723690842510,1.1368862,58483.0,58482.0,0.0009053]
[1723690842713,2.41407381,58483.0,58482.0,0.0009053]
[1723690842866,1.67407381,58483.0,58482.0,0.0009053]
[1723690843069,2.61618599,58483.0,58482.0,0.0009053]
[1723690843434,2.6152331,58483.0,58482.0,0.0009053]
[1723690843689,2.6142331,58483.0,58482.0,0.0009053]
[1723690843920,1.8332331,58483.0,58482.0,0.0009053]
[1723690844095,2.5432331,58483.0,58482.0,0.0009053]
[1723690844296,2.5342331,58483.0,58482.0,0.0009053]
[1723690844665,1.8242331,58483.0,58482.0,0.0009053]
[1723690844868,1.8292331,58483.0,58482.0,0.0009053]
[1723690845279,1.8292331,58483.0,58481.0,0.00063441]
[1723690845280,0.837861,58482.0,58481.0,0.00063441]
[1723690845484,1.62732572,58482.0,58481.0,0.00063441]
[1723690846137,1.47596434,58482.0,58481.0,0.00063441]
[1723690846577,1.48596434,58482.0,58481.0,0.00163441]
[1723690846998,1.33296681,58482.0,58481.0,0.00163441]
[1723690847167,1.57235581,58482.0,58481.0,0.00163441]
[1723690847375,1.58435581,58482.0,58481.0,0.00163441]
[1723690849292,1.51164374,58482.0,58481.0,0.00163441]
[1723690850082,1.50164374,58482.0,58481.0,0.00163441]
[1723690851544,1.3300892,58482.0,58481.0,0.00163441]
[1723690852481,1.0907002,58482.0,58481.0,0.00163441]
[1723690853313,1.8307002,58482.0,58481.0,0.00163441]
[1723690853952,2.0700892,58482.0,58481.0,0.00163441]
[1723690854295,2.14278669,58482.0,58481.0,0.00163441]
[1723690854482,2.29578422,58482.0,58481.0,0.00163441]
[1723690854680,2.52453876,58482.0,58481.0,0.00163441]
[1723690854883,3.08161576,58482.0,58481.0,0.00163441]
[1723690855054,3.08161576,58482.0,58475.0,0.009053]
[1723690855055,0.895149,58476.0,58475.0,0.009053]
[1723690855272,0.359158,58470.0,58462.0,0.009053]
[1723690855437,2.02042974,58470.0,58462.0,0.009053]
[1723690855636,2.41012062,58470.0,58462.0,0.009053]
[1723690856227,2.45442328,58470.0,58462.0,0.009053]
[1723690857273,2.5561528,58470.0,58462.0,0.009053]
[1723690857411,1.17918882,58470.0,58462.0,0.009053]
[1723690857619,0.91432237,58470.0,58462.0,0.009053]
[1723690857800,1.64532185,58470.0,58462.0,0.009053]
[1723690858000,1.89342875,58470.0,58462.0,0.009053]
[1723690858224,1.569036,58470.0,58462.0,0.009053]
[1723690858424,1.91214508,58470.0,58462.0,0.009053]
[1723690858715,1.92614508,58470.0,58462.0,0.009053]
[1723690858917,2.1484806,58470.0,58462.0,0.009053]
[1723690859127,1.83085355,58470.0,58462.0,0.009053]
[1723690859330,1.83085355,58470.0,58469.0,0.085042]
[1723690859331,1.63388036,58470.0,58469.0,0.085042]
[1723690859509,0.913885,58470.0,58469.0,0.150542]
[1723690859740,0.863036,58470.0,58469.0,0.150542]
[1723690860167,0.913885,58470.0,58469.0,0.085042]
[1723690860376,1.84706292,58470.0,58469.0,0.009042]
[1723690860991,1.653036,58470.0,58469.0,0.009042]
[1723690861566,1.72933574,58470.0,58469.0,0.009042]
[1723690861924,1.72933574,58470.0,58469.0,0.092042]
[1723690861925,0.87323311,58470.0,58469.0,0.092042]
[1723690863516,0.87323311,58470.0,58469.0,0.155842]
[1723690863943,0.623597,58470.0,58469.0,0.155842]
[1723690864571,0.6233912,58470.0,58469.0,0.155842]
[1723690865104,0.3839522,58470.0,58469.0,0.155842]
[1723690865321,0.3839522,58470.0,58469.0,0.1714262]
[1723690865741,0.6233912,58470.0,58469.0,0.1714262]
[1723690866375,0.3839522,58470.0,58469.0,0.155842]
[1723690867604,0.6233912,58470.0,58469.0,0.155842]
[1723690867924,0.3839522,58470.0,58469.0,0.155842]
[1723690872099,0.6233912,58470.0,58469.0,0.155842]
[1723690872520,0.3839522,58470.0,58469.0,0.155842]
[1723690873405,0.6233912,58470.0,58469.0,0.155842]
[1723690873606,0.3839522,58470.0,58469.0,0.155842]
[1723690875447,0.1445132,58470.0,58469.0,0.155842]
[1723690875650,0.3839522,58470.0,58469.0,0.155842]
[1723690875855,0.025,58470.0,58469.0,0.70214474]
[1723690876471,0.025,58470.0,58469.0,0.46270174]
[1723690876870,0.014,58470.0,58469.0,0.46270174]
[1723690877352,0.025,58470.0,58469.0,0.34298074]
[1723690877709,0.014,58470.0,58469.0,0.34298074]
[1723690878137,0.006,58470.0,58469.0,0.46210174]
[1723690878341,0.014,58470.0,58469.0,0.46210174]
[1723690878541,0.014,58470.0,58469.0,0.1708262]
[1723690878787,0.133719,58470.0,58469.0,0.1708262]
[1723690879201,0.373158,58470.0,58469.0,0.1708262]
[1723690881097,0.44617336,58470.0,58469.0,0.1708262]
[1723690883926,0.44617336,58470.0,58469.0,0.155242]
[1723690884079,0.68561236,58470.0,58469.0,0.155242]
[1723690884710,0.92505136,58470.0,58469.0,0.091542]
[1723690885151,0.92505136,58470.0,58469.0,0.010042]
[1723690885356,1.71505136,58470.0,58469.0,0.010042]
[1723690885749,0.92505136,58470.0,58469.0,0.010042]
[1723690885946,1.1513054,58470.0,58469.0,0.010042]
[1723690886178,1.30496713,58470.0,58469.0,0.010042]
[1723690887273,1.4552056,58470.0,58469.0,0.010042]
[1723690887684,1.1513054,58470.0,58469.0,0.010042]
[1723690889124,1.15131105,58470.0,58469.0,0.010042]
[1723690890097,1.15213405,58470.0,58469.0,0.010042]
[1723690891042,1.92213405,58470.0,58469.0,0.010042]
[1723690891289,2.2259285,58470.0,58469.0,0.010042]
[1723690892091,2.22651733,58470.0,58469.0,0.010042]
[1723690893166,2.2265492,58470.0,58469.0,0.010042]
[1723690893743,2.39810374,58470.0,58469.0,0.010042]
[1723690894082,1.8674289,58470.0,58469.0,0.010042]
[1723690894299,2.22644435,58470.0,58469.0,0.010042]
[1723690895305,2.52291068,58470.0,58469.0,0.010042]
[1723690897151,2.52588921,58470.0,58469.0,0.010042]
[1723690897569,2.52291068,58470.0,58469.0,0.010042]
[1723690898712,1.75291068,58470.0,58469.0,0.010042]
[1723690898937,2.48291068,58470.0,58469.0,0.010042]
[1723690899051,2.47974024,58470.0,58469.0,0.010042]
[1723690900974,2.42254024,58470.0,58469.0,0.010042]
[1723690902340,2.49196237,58470.0,58469.0,0.010042]
[1723690903489,2.42254024,58470.0,58469.0,0.010042]
[1723690905885,0.61506524,58470.0,58469.0,0.152442]
[1723690906229,0.84508585,58470.0,58469.0,0.152442]
[1723690906385,1.08452485,58470.0,58469.0,0.152442]
[1723690906842,0.60564685,58470.0,58469.0,0.152442]
[1723690907041,0.84508585,58470.0,58469.0,0.152442]
[1723690908506,1.08452485,58470.0,58469.0,0.152442]
[1723690909971,0.68643536,58470.0,58469.0,0.152442]
[1723690910193,1.08486636,58470.0,58469.0,0.152442]
[1723690910872,1.08486636,58470.0,58469.0,0.1770862]
[1723690911108,1.08486636,58470.0,58469.0,0.152442]
[1723690912896,1.08451408,58470.0,58469.0,0.152442]
[1723690913097,0.9112535,58470.0,58469.0,0.152442]
[1723690913299,1.21363887,58470.0,58469.0,0.152442]
[1723690913977,0.9112535,58470.0,58469.0,0.152442]
[1723690914179,1.1506925,58470.0,58469.0,0.089242]
[1723690914429,1.45307787,58470.0,58469.0,0.089242]
[1723690914794,1.29700325,58470.0,58469.0,0.010042]
[1723690914996,1.45307787,58470.0,58469.0,0.010042]
[1723690915233,1.32395727,58470.0,58469.0,0.010042]
[1723690917238,1.3241006,58470.0,58469.0,0.086642]
[1723690917705,1.3241006,58470.0,58469.0,0.246042]
[1723690919208,1.3241006,58470.0,58469.0,0.152042]
[1723690923085,2.12027093,58470.0,58469.0,0.152042]
[1723690923306,1.69283672,58470.0,58469.0,0.152042]
[1723690923846,2.65342123,58470.0,58469.0,0.086642]
[1723690924053,2.65342123,58470.0,58464.0,0.0655]
[1723690924054,3.08741477,58470.0,58462.0,0.009053]
[1723690924248,1.22057827,58463.0,58462.0,0.009053]
[1723690924447,2.70965617,58463.0,58462.0,0.009053]
[1723690924679,3.29782201,58463.0,58462.0,0.009053]
[1723690925040,2.80567153,58463.0,58462.0,0.009053]
[1723690925252,1.76391699,58463.0,58462.0,0.084953]
[1723690925482,1.76391699,58463.0,58462.0,0.085953]
[1723690925684,1.77791699,58463.0,58462.0,0.085953]
[1723690926094,1.76391699,58463.0,58462.0,0.084953]
[1723690926299,1.77791699,58463.0,58462.0,0.085953]
[1723690926914,1.70613972,58463.0,58462.0,0.085953]
[1723690929339,1.71614106,58463.0,58462.0,0.085953]
[1723690929566,1.8876956,58463.0,58462.0,0.085953]
[1723690930170,2.5976956,58463.0,58462.0,0.010053]
[1723690930446,2.6548956,58463.0,58462.0,0.010053]
[1723690932425,2.82645014,58463.0,58462.0,0.010053]
[1723690932638,2.84945014,58463.0,58462.0,0.010053]
[1723690933044,3.08891714,58463.0,58462.0,0.010053]
[1723690933189,1.077768,58454.0,58453.0,0.0754]
[1723690933391,2.14574093,58454.0,58453.0,0.0754]
[1723690933591,2.44830672,58454.0,58453.0,0.0754]
[1723690934115,1.67830672,58454.0,58453.0,0.0754]
[1723690934332,1.077804,58452.0,58451.0,0.0002]
[1723690934452,2.14577693,58452.0,58451.0,0.0002]
[1723690934669,2.62116563,58452.0,58451.0,0.0002]
[1723690934867,2.44834272,58452.0,58451.0,0.0002]
[1723690935411,2.61989726,58452.0,58451.0,0.0002]
[1723690935782,2.45034272,58452.0,58451.0,0.0002]
[1723690936182,2.45334272,58452.0,58451.0,0.0002]
[1723690936388,2.44834272,58452.0,58451.0,0.0002]
[1723690936561,2.42334272,58452.0,58451.0,0.0002]
[1723690936758,2.43134272,58452.0,58451.0,0.0002]
[1723690937366,2.43134272,58452.0,58451.0,0.0011053]
[1723690937768,2.60289726,58452.0,58451.0,0.0011053]
[1723690937997,2.84240926,58452.0,58451.0,0.0011053]
[1723690938375,3.3336758,58452.0,58451.0,3e-07]
[1723690938576,3.34382883,58452.0,58451.0,3e-07]
[1723690939360,1.374631,58447.0,58446.0,0.009053]
[1723690939575,2.64122823,58447.0,58446.0,0.009053]
[1723690939775,2.96679402,58447.0,58446.0,0.009053]
[1723690940585,2.75036695,58447.0,58446.0,0.009053]
[1723690940791,3.22338925,58447.0,58446.0,1e-06]
[1723690941044,1.135152,58444.0,58443.0,1e-06]
[1723690941243,1.135152,58444.0,58439.0,0.00021278]
[1723690941244,0.359341,58440.0,58439.0,0.00021278]
[1723690941451,3.45412131,58440.0,58439.0,0.00021278]
[1723690941603,3.47712131,58440.0,58439.0,0.00021278]
[1723690941823,3.63013591,58440.0,58439.0,0.00021278]
[1723690942228,3.47712131,58440.0,58439.0,0.00021278]
[1723690942429,3.88823685,58440.0,58439.0,0.00021278]
[1723690942879,4.05542045,58440.0,58439.0,0.00021278]
[1723690943059,4.05542045,58440.0,58439.0,0.07921278]
[1723690943060,2.821321,58440.0,58439.0,0.07921278]
[1723690943233,2.58980441,58440.0,58439.0,0.07921278]
[1723690944340,2.58980441,58440.0,58436.0,0.0095851]
[1723690944341,0.838509,58437.0,58436.0,0.0095851]
[1723690945239,0.88950619,58437.0,58436.0,0.0095851]
[1723690945442,0.838509,58437.0,58436.0,0.0095851]
[1723690945706,0.845509,58437.0,58436.0,0.0095851]
[1723690945939,0.854509,58437.0,58436.0,0.0095851]
[1723690947114,0.614935,58437.0,58436.0,0.0095851]
[1723690947448,0.614935,58437.0,58436.0,0.1529851]
[1723690948512,0.135787,58437.0,58436.0,0.16918891]
[1723690948723,0.016,58437.0,58436.0,0.46053245]
[1723690949529,0.009,58437.0,58436.0,0.46143885]
[1723690949750,0.119781,58440.0,58437.0,0.1471]
[1723690949957,0.119783,58439.0,58438.0,0.36607372]
[1723690950164,0.119783,58439.0,58438.0,0.60097372]
[1723690952185,0.11978,58441.0,58439.0,0.1371]
[1723690952385,0.359335,58441.0,58440.0,0.30865454]
[1723690952576,0.119778,58441.0,58440.0,0.30865454]
[1723690952858,0.119778,58441.0,58440.0,0.37042144]
[1723690953325,0.359335,58441.0,58440.0,0.37042144]
[1723690954012,0.119778,58441.0,58440.0,0.37042144]
[1723690954808,0.32532227,58445.0,58442.0,0.0768]
[1723690954809,0.08577727,58445.0,58442.0,0.0768]
[1723690955052,0.119771,58445.0,58444.0,0.0774]
[1723690955291,0.598853,58445.0,58444.0,0.0774]
[1723690956345,0.599853,58445.0,58444.0,0.0774]
[1723690959752,0.120771,58445.0,58444.0,0.0774]
[1723690960014,0.360312,58445.0,58444.0,0.1399]
[1723690960251,0.360312,58445.0,58444.0,0.18898004]
[1723690961012,0.599853,58445.0,58444.0,0.18898004]
[1723690961310,0.599853,58445.0,58444.0,0.1399]
[1723690961952,0.360312,58445.0,58444.0,0.1399]
[1723690962368,0.001823,58445.0,58444.0,0.1399]
[1723690962766,0.001823,58445.0,58444.0,0.54635454]
[1723690963527,0.001823,58445.0,58444.0,0.66612654]
[1723690963744,0.001823,58445.0,58444.0,0.64309918]
[1723690963914,0.001823,58445.0,58444.0,1.00241618]
[1723690966455,0.001823,58445.0,58444.0,1.24196118]
[1723690966849,0.001823,58445.0,58444.0,1.48350618]
[1723690967262,0.001823,58445.0,58444.0,1.58350618]
[1723690967918,0.001823,58445.0,58444.0,1.34196118]
[1723690968050,0.000823,58445.0,58444.0,1.34196118]
[1723690968510,0.002823,58445.0,58444.0,1.34296118]
[1723690968905,0.002823,58445.0,58444.0,1.58250618]
[1723690969093,0.002823,58445.0,58444.0,1.58450618]
[1723690979757,0.002823,58445.0,58444.0,0.86387118]
[1723690979992,0.002823,58445.0,58444.0,0.40919918]
[1723690980193,0.002823,58445.0,58444.0,0.001]
[1723690980194,0.122593,58445.0,58444.0,0.001]
[1723690980418,0.601675,58445.0,58444.0,0.001]
[1723690981183,0.840216,58445.0,58444.0,0.001]
[1723690981380,0.889816,58445.0,58444.0,0.001]
[1723690981588,1.21998035,58445.0,58444.0,0.002]
[1723690981797,1.34266275,58445.0,58444.0,0.002]
[1723690982006,1.41478566,58445.0,58444.0,0.001]
[1723690982207,0.598902,58440.0,58439.0,0.0009053]
[1723690982612,0.8895852,58440.0,58439.0,0.0009053]
[1723690983435,0.838463,58440.0,58439.0,0.0009053]
[1723690984460,0.89358421,58440.0,58439.0,0.0009053]
[1723690984663,0.842463,58440.0,58439.0,0.0009053]
[1723690985688,0.843463,58440.0,58439.0,0.0009053]
[1723690988677,0.843463,58440.0,58439.0,0.0830053]
[1723690988678,0.364341,58440.0,58439.0,0.0830053]
[1723690988854,0.364341,58440.0,58439.0,0.28830482]
[1723690988855,0.005,58440.0,58439.0,0.28830482]
[1723690989085,0.005,58440.0,58439.0,0.71245382]
[1723690989270,0.005,58440.0,58439.0,0.47288782]
[1723690989788,0.005,58440.0,58439.0,0.95201982]
[1723690989932,0.001,58440.0,58439.0,0.95201982]
[1723690990137,0.005,58440.0,58439.0,0.95201982]
[1723690990337,0.00479416,58440.0,58439.0,0.95201982]
[1723690990537,0.00079416,58440.0,58439.0,0.95201982]
[1723690990736,0.000823,58445.0,58439.0,0.95201982]
[1723690990737,0.000823,58445.0,58444.0,0.201872]
[1723690990964,0.000823,58445.0,58444.0,0.89201394]
[1723690991474,0.000823,58445.0,58444.0,0.65246894]
[1723690991678,0.000823,58445.0,58444.0,0.53269694]
[1723690991876,0.000823,58445.0,58444.0,0.65246894]
[1723690992501,0.006823,58445.0,58444.0,0.65246894]
[1723690992870,0.001823,58445.0,58444.0,0.65346894]
[1723690993209,0.002823,58445.0,58444.0,0.65446894]
[1723690993832,0.002823,58445.0,58444.0,0.53469694]
[1723690994462,0.122593,58445.0,58444.0,0.53469694]
[1723690994667,0.362134,58445.0,58444.0,0.53469694]
[1723690995026,0.362134,58445.0,58444.0,0.45259694]
[1723690995835,0.122593,58445.0,58444.0,0.45259694]
[1723690996031,0.002823,58445.0,58444.0,0.53289694]
[1723690996275,0.002823,58445.0,58444.0,0.65266894]
[1723690997327,0.002823,58445.0,58444.0,0.53289694]
[1723690997708,0.002823,58445.0,58444.0,0.65266894]
[1723690998288,0.002823,58445.0,58444.0,1.19655894]
[1723691000864,0.002823,58445.0,58444.0,1.53610394]
[1723691001087,0.002823,58445.0,58444.0,1.53810394]
[1723691001916,0.001823,58445.0,58444.0,1.53710394]
[1723691002069,0.000823,58445.0,58444.0,1.53610394]
[1723691002437,0.051187,58461.0,58460.0,0.746097]
[1723691002578,0.0776045,58462.0,58460.0,0.746097]
[1723691002579,0.51548762,58462.0,58461.0,0.441812]
[1723691002767,0.000824,58462.0,58461.0,1.09231654]
[1723691003571,0.000823,58470.0,58469.0,0.598607]
[1723691003798,0.000823,58470.0,58469.0,1.15246154]
[1723691004004,0.000823,58470.0,58469.0,1.49390454]
[1723691004228,0.000823,58470.0,58469.0,1.5711138]
[1723691004595,0.000823,58470.0,58469.0,1.5731138]
[1723691004793,0.000823,58470.0,58469.0,1.5711138]
[1723691004994,0.001823,58470.0,58469.0,1.5791138]
[1723691005219,0.001823,58470.0,58469.0,1.59133831]
[1723691006854,0.000823,58475.0,58474.0,0.977277]
[1723691007057,0.000823,58482.0,58481.0,0.737782]
[1723691007264,0.000823,58482.0,58481.0,1.38362954]
[1723691007467,0.08565922,58492.0,58491.0,0.359029]
[1723691007667,0.000823,58494.0,58491.0,0.60232954]
[1723691007929,0.000823,58494.0,58492.0,0.29122854]
[1723691008177,0.000823,58494.0,58493.0,0.0441424]
[1723691008350,0.000823,58494.0,58493.0,0.21569694]
[1723691009743,0.011823,58494.0,58493.0,0.57471294]
[1723691009952,0.011823,58494.0,58493.0,0.33536894]
[1723691010167,0.011823,58494.0,58493.0,0.87715694]
[1723691010378,0.000823,58494.0,58493.0,0.87715694]
[1723691010788,0.000823,58494.0,58493.0,0.64081294]
[1723691011346,0.000823,58494.0,58493.0,0.40146894]
[1723691011578,0.000823,58494.0,58493.0,0.64081294]
[1723691011974,0.000823,58494.0,58493.0,0.21869694]
[1723691013143,0.000823,58494.0,58493.0,0.33836894]
[1723691013350,0.359833,58494.0,58493.0,0.003]
[1723691013555,0.411233,58494.0,58493.0,0.003]
[1723691013757,0.889913,58494.0,58493.0,0.003]
[1723691014418,0.239362,58489.0,58481.0,0.0762]
[1723691014629,0.119691,58484.0,58482.0,0.17155454]
[1723691014828,0.119691,58484.0,58483.0,0.03674545]
[1723691014994,0.119691,58484.0,58483.0,0.20829999]
[1723691016784,0.359072,58484.0,58483.0,0.20829999]
[1723691017199,0.359072,58484.0,58483.0,0.21329999]
[1723691017592,0.359072,58484.0,58483.0,0.001]
[1723691017593,0.598453,58484.0,58483.0,0.001]
[1723691017828,0.598453,58484.0,58474.0,0.03374498]
[1723691017829,0.119709,58475.0,58474.0,0.03374498]
[1723691018023,0.359127,58475.0,58474.0,0.20529952]
[1723691018249,0.119706,58477.0,58474.0,0.20529952]
[1723691018453,0.119707,58476.0,58475.0,0.17155454]
[1723691018656,0.119707,58476.0,58475.0,0.21194609]
[1723691019250,0.359121,58476.0,58475.0,0.21194609]
[1723691019871,0.359121,58476.0,58475.0,0.22194609]
[1723691020248,0.598535,58476.0,58475.0,0.01]
[1723691020598,0.598535,58476.0,58475.0,0.19355454]
[1723691020599,0.001,58476.0,58475.0,0.19355454]
[1723691020802,0.001,58476.0,58475.0,0.31326354]
[1723691021009,0.711976,58486.0,58475.0,0.30126354]
[1723691021010,0.119699,58480.0,58475.0,0.30126354]
[1723691021223,0.119705,58477.0,58476.0,0.46828329]
[1723691021429,0.359115,58477.0,58476.0,0.46828329]
[1723691022507,0.119705,58477.0,58476.0,0.46828329]
[1723691023283,0.119705,58477.0,58476.0,0.47028329]
[1723691023689,0.119705,58477.0,58476.0,0.47528329]
[1723691024281,0.598525,58477.0,58476.0,0.06402875]
[1723691024475,0.598525,58477.0,58476.0,0.008]
[1723691024476,0.660525,58477.0,58476.0,0.008]
[1723691025104,0.899935,58477.0,58476.0,0.006]
[1723691025547,1.741335,58477.0,58476.0,0.006]
[1723691025686,2.15229954,58477.0,58476.0,0.006]
[1723691025883,2.15229954,58477.0,58474.0,0.0009042]
[1723691025884,1.37251908,58477.0,58451.0,0.077]
[1723691026159,1.37251908,58477.0,58452.0,0.17155454]
[1723691026160,0.119752,58455.0,58452.0,0.17155454]
[1723691026428,0.0643,58460.0,58452.0,0.17155454]
[1723691026625,0.119752,58454.0,58452.0,0.17155454]
[1723691027457,0.119754,58453.0,58452.0,0.17155454]
[1723691027777,0.119754,58453.0,58452.0,0.18155454]
[1723691027975,0.119751,58455.0,58452.0,0.24936639]
[1723691029300,0.239481,58460.0,58452.0,0.24936639]
[1723691029301,0.119754,58454.0,58452.0,0.24936639]
[1723691029528,0.001,58454.0,58452.0,0.26136639]
[1723691029705,0.001,58454.0,58452.0,0.25136639]
[1723691029905,0.119749,58456.0,58453.0,0.05630664]
[1723691030110,0.11975,58455.0,58454.0,0.17155454]
[1723691030260,0.12075,58455.0,58454.0,0.17155454]
[1723691030696,0.11975,58455.0,58454.0,0.17155454]
[1723691031103,1.25105347,58477.0,58454.0,0.29130554]
[1723691031104,0.001,58456.0,58454.0,0.29130554]
[1723691031327,0.001,58456.0,58455.0,0.27716192]
[1723691031692,0.001,58456.0,58455.0,0.44871646]
[1723691032503,0.239473,58462.0,58455.0,0.44871646]
[1723691032713,0.119742,58459.0,58456.0,0.25145454]
[1723691032918,0.119742,58459.0,58457.0,0.07156751]
[1723691033121,0.119742,58459.0,58458.0,0.17155454]
[1723691034368,0.119742,58459.0,58458.0,0.17555454]
[1723691034573,0.120742,58459.0,58458.0,0.18255454]
[1723691034770,0.120742,58459.0,58458.0,0.17855454]
[1723691034949,0.120742,58459.0,58458.0,0.24709226]
[1723691035152,0.001,58459.0,58458.0,0.24709226]
[1723691035354,0.001,58459.0,58458.0,0.99351226]
[1723691035557,0.001,58459.0,58458.0,1.09351226]
[1723691035756,0.51466362,58474.0,58470.0,0.1477]
[1723691035982,0.51466362,58474.0,58473.0,0.2347]
[1723691036140,0.359133,58474.0,58473.0,0.40625454]
[1723691036526,0.119711,58474.0,58473.0,0.40625454]
[1723691037497,0.119711,58474.0,58473.0,0.40825454]
[1723691037838,0.11971,58475.0,58473.0,0.40825454]
[1723691038040,0.11971,58475.0,58474.0,0.06259435]
[1723691038240,0.11971,58475.0,58474.0,0.23414889]
[1723691038441,0.120527,58477.0,58474.0,0.23414889]
[1723691038848,0.000822,58477.0,58474.0,0.23414889]
[1723691039050,0.119707,58476.0,58474.0,0.23414889]
[1723691039251,0.119707,58476.0,58475.0,0.06083339]
[1723691039460,0.359121,58476.0,58475.0,0.23238793]
[1723691041273,0.359121,58476.0,58475.0,0.06083339]
[1723691041482,0.119715,58472.0,58471.0,0.01477]
[1723691041695,0.119715,58472.0,58471.0,0.18632454]
[1723691041916,0.119713,58473.0,58471.0,0.18632454]
[1723691042116,0.119711,58474.0,58472.0,0.21047919]
[1723691042346,0.239418,58476.0,58472.0,0.21047919]
[1723691042570,0.239419,58475.0,58472.0,0.21047919]
[1723691043247,0.359139,58473.0,58472.0,0.03892465]
[1723691043444,0.424645,58472.0,58471.0,0.004]
[1723691043767,0.424645,58472.0,58461.0,0.316]
[1723691043768,0.119734,58463.0,58461.0,0.316]
[1723691043926,0.239461,58465.0,58461.0,0.316]
[1723691043927,0.119735,58462.0,58461.0,0.316]
[1723691044546,0.239464,58464.0,58457.0,0.0009042]
[1723691044547,0.119744,58458.0,58457.0,0.0009042]
[1723691044749,0.359232,58458.0,58457.0,0.17245874]
[1723691044972,0.119744,58458.0,58457.0,0.22774461]
[1723691045176,0.119732,58464.0,58458.0,0.0813]
[1723691045377,0.0655,58472.0,58463.0,0.2347]
[1723691045545,0.239439,58470.0,58464.0,0.17155454]